bitfinex/quotes_BTCUSD_20241003
["timestamp","ask_amount","ask_price","bid_price","bid_amount"]
[1727970768191,0.001,60782.0,60781.0,0.37303473]
[1727970768421,0.001,60782.0,60781.0,0.37503473]
[1727970768666,0.001,60782.0,60781.0,0.38903473]
[1727970768917,0.001,60782.0,60781.0,0.44171171]
[1727970769221,0.001,60782.0,60781.0,0.45771171]
[1727970769410,0.001,60782.0,60781.0,0.45571171]
[1727970769639,0.001,60782.0,60781.0,0.192525]
[1727970770193,0.001816,60782.0,60781.0,0.192525]
[1727970771151,0.001816,60782.0,60781.0,0.164525]
[1727970771389,0.002816,60782.0,60781.0,0.170525]
[1727970771635,0.002816,60782.0,60781.0,0.175525]
[1727970772174,0.025816,60782.0,60781.0,0.175525]
[1727970773135,0.025816,60782.0,60781.0,0.15223]
[1727970773389,0.002816,60782.0,60781.0,0.15223]
[1727970773626,0.002816,60782.0,60781.0,0.164525]
[1727970773627,0.024816,60782.0,60781.0,0.164525]
[1727970773871,0.024816,60782.0,60779.0,0.16616]
[1727970773872,0.023,60781.0,60779.0,0.16616]
[1727970774116,0.023,60781.0,60780.0,0.41324816]
[1727970774422,0.002816,60782.0,60779.0,0.001632]
[1727970774654,0.002816,60782.0,60781.0,0.164525]
[1727970774880,0.001816,60782.0,60781.0,0.169525]
[1727970775107,0.024816,60782.0,60781.0,0.005]
[1727970775338,0.024816,60782.0,60781.0,0.169525]
[1727970775603,0.023,60781.0,60779.0,0.001632]
[1727970775827,0.023,60781.0,60780.0,0.164527]
[1727970776507,0.023,60781.0,60779.0,0.001632]
[1727970776740,0.001816,60782.0,60781.0,0.164525]
[1727970777035,0.002816,60782.0,60781.0,0.33371171]
[1727970777259,0.002816,60782.0,60781.0,0.164525]
[1727970777260,0.001816,60782.0,60781.0,0.164525]
[1727970777486,0.001816,60782.0,60781.0,0.41324616]
[1727970777713,0.001816,60782.0,60781.0,0.32771171]
[1727970777965,0.34780456,60796.0,60781.0,0.32771171]
[1727970777966,0.34780456,60796.0,60795.0,0.70840996]
[1727970777967,0.0009834,60796.0,60795.0,0.70840996]
[1727970778196,0.0009834,60796.0,60795.0,0.74648996]
[1727970778427,0.0002,60799.0,60798.0,0.197559]
[1727970780372,0.0002,60799.0,60798.0,0.164479]
[1727970781347,0.0002,60799.0,60793.0,0.328983]
[1727970781596,0.0002,60799.0,60798.0,0.005]
[1727970781829,0.0002,60799.0,60792.0,0.24872116]
[1727970781830,0.187676,60799.0,60792.0,0.24872116]
[1727970782070,0.187676,60799.0,60785.0,0.329028]
[1727970782071,0.0949,60794.0,60793.0,0.24872116]
[1727970782314,0.0949,60794.0,60785.0,0.329028]
[1727970782315,0.023,60793.0,60786.0,0.164509]
[1727970782554,0.023,60791.0,60783.0,0.41323916]
[1727970782802,0.0949,60794.0,60783.0,0.24872116]
[1727970782803,0.18751,60787.0,60783.0,0.24872116]
[1727970783040,0.023,60785.0,60783.0,0.24872116]
[1727970783412,0.023,60783.0,60766.0,0.329128]
[1727970783664,0.023,60783.0,60751.0,0.007]
[1727970783665,0.354027,60780.0,60764.0,0.493706]
[1727970783891,0.354027,60780.0,60765.0,0.164566]
[1727970784135,0.354027,60780.0,60757.0,0.329175]
[1727970784136,0.164554,60770.0,60757.0,0.329175]
[1727970784387,0.164554,60770.0,60755.0,0.57790716]
[1727970784388,0.187554,60770.0,60755.0,0.57790716]
[1727970784648,0.187554,60770.0,60755.0,0.24872116]
[1727970784889,0.329119,60769.0,60755.0,0.24872116]
[1727970785149,0.023,60766.0,60755.0,0.24872116]
[1727970785391,0.164592,60756.0,60755.0,0.24872116]
[1727970785629,0.023,60755.0,60747.0,0.24872116]
[1727970785861,0.023,60749.0,60747.0,0.24872116]
[1727970786119,0.023,60749.0,60747.0,0.41333616]
[1727970786352,0.023,60749.0,60748.0,0.164614]
[1727970787084,0.023,60749.0,60748.0,0.16677749]
[1727970787317,0.0009983,60760.0,60759.0,0.164584]
[1727970787796,0.0009983,60760.0,60758.0,0.329174]
[1727970787797,0.023,60764.0,60762.0,0.164574]
[1727970788037,0.023,60764.0,60760.0,0.329161]
[1727970788267,0.164579,60761.0,60757.0,0.164589]
[1727970788533,0.164579,60761.0,60756.0,0.41331216]
[1727970788767,0.023,60762.0,60758.0,0.164584]
[1727970788995,0.023,60762.0,60753.0,0.329201]
[1727970789236,0.023,60759.0,60754.0,0.24872116]
[1727970789535,0.023,60759.0,60744.0,0.329248]
[1727970789816,0.023,60759.0,60755.0,0.24872116]
[1727970790047,0.164604,60752.0,60742.0,0.329261]
[1727970790326,0.023,60749.0,60748.0,0.24872116]
[1727970790558,0.023,60749.0,60745.0,0.164621]
[1727970790826,0.164611,60749.0,60743.0,0.164627]
[1727970791067,0.329198,60754.0,60726.0,0.329347]
[1727970791068,0.329234,60747.0,60737.0,0.329284]
[1727970791304,0.329207,60752.0,60745.0,0.164621]
[1727970791538,0.190612,60749.0,60740.0,0.32927]
[1727970791777,0.04673486,60749.0,60742.0,0.164628]
[1727970792012,0.04673486,60749.0,60735.0,0.44392296]
[1727970792013,0.023,60745.0,60735.0,0.44392296]
[1727970792247,0.023,60738.0,60733.0,0.41337516]
[1727970792486,0.164645,60737.0,60733.0,0.24872116]
[1727970792729,0.164645,60737.0,60732.0,0.164657]
[1727970792730,0.023,60736.0,60732.0,0.164657]
[1727970792968,0.0746926,60736.0,60728.0,0.329332]
[1727970793234,0.023,60730.0,60724.0,0.24872116]
[1727970793468,0.0746926,60736.0,60729.0,0.329327]
[1727970793722,0.023,60740.0,60724.0,0.24872116]
[1727970793958,0.023,60734.0,60733.0,0.009]
[1727970794162,0.023,60734.0,60731.0,0.164659]
[1727970794684,0.023,60734.0,60730.0,0.329325]
[1727970795137,0.023,60734.0,60731.0,0.164659]
[1727970795373,0.24872116,60741.0,60729.0,0.32933]
[1727970795374,0.0009988,60742.0,60733.0,0.24872116]
[1727970795611,0.0009988,60742.0,60741.0,0.164633]
[1727970795849,0.24872116,60752.0,60744.0,0.329246]
[1727970796047,0.24872116,60752.0,60746.0,0.329237]
[1727970796295,0.32919,60756.0,60739.0,0.24872116]
[1727970796526,0.164601,60753.0,60747.0,0.164617]
[1727970796761,0.001,60742.0,60741.0,0.329263]
[1727970796993,0.023,60752.0,60742.0,0.32926]
[1727970797225,0.023,60752.0,60731.0,0.69264412]
[1727970797226,0.023,60746.0,60734.0,0.329302]
[1727970797465,0.023,60746.0,60731.0,0.26272116]
[1727970797466,0.023,60738.0,60731.0,0.26272116]
[1727970797925,0.164656,60733.0,60728.0,0.164667]
[1727970798164,0.023,60734.0,60724.0,0.57807616]
[1727970798438,0.0258116,60732.0,60726.0,0.329346]
[1727970798672,0.023,60731.0,60730.0,0.164663]
[1727970799141,0.023,60731.0,60727.0,0.329342]
[1727970799378,0.023,60731.0,60728.0,0.164666]
[1727970799614,0.023,60731.0,60721.0,0.329369]
[1727970799857,0.3293,60735.0,60724.0,0.164679]
[1727970799858,0.187667,60729.0,60724.0,0.164679]
[1727970800123,0.187661,60731.0,60724.0,0.24872116]
[1727970800374,0.32932,60732.0,60728.0,0.164668]
[1727970800375,0.023,60732.0,60728.0,0.164668]
[1727970800622,0.023,60734.0,60726.0,0.329343]
[1727970800863,0.0009831,60737.0,60726.0,0.329343]
[1727970800864,0.0009831,60737.0,60736.0,0.164646]
[1727970801353,0.429205,60753.0,60735.0,0.329294]
[1727970801354,0.329218,60750.0,60735.0,0.329294]
[1727970801592,0.164616,60748.0,60743.0,0.164627]
[1727970801829,0.0009863,60749.0,60745.0,0.164622]
[1727970802065,0.24872116,60752.0,60745.0,0.329242]
[1727970802299,0.0767,60755.0,60746.0,0.329236]
[1727970802549,0.0767,60755.0,60737.0,0.44392296]
[1727970802550,0.41106471,60754.0,60737.0,0.44392296]
[1727970802787,0.41106471,60754.0,60736.0,0.007]
[1727970802788,0.32922,60750.0,60743.0,0.164626]
[1727970803040,0.32922,60750.0,60741.0,0.329265]
[1727970803041,0.329226,60749.0,60741.0,0.329265]
[1727970803294,0.164625,60744.0,60740.0,0.164635]
[1727970803528,0.16463,60742.0,60737.0,0.164643]
[1727970803768,0.16463,60742.0,60730.0,0.329324]
[1727970803769,0.329273,60740.0,60733.0,0.24872116]
[1727970804000,0.164645,60737.0,60733.0,0.24872116]
[1727970804225,0.164645,60737.0,60717.0,0.57811616]
[1727970804226,0.023,60736.0,60732.0,0.329314]
[1727970804458,0.023,60736.0,60731.0,0.24872116]
[1727970804918,0.023,60736.0,60728.0,0.329334]
[1727970804919,0.24872116,60735.0,60728.0,0.329334]
[1727970804921,0.187648,60736.0,60729.0,0.24872116]
[1727970805149,0.187648,60736.0,60731.0,0.164659]
[1727970805387,0.164661,60731.0,60724.0,0.329356]
[1727970805636,0.329301,60735.0,60717.0,0.24872116]
[1727970805637,0.023,60730.0,60717.0,0.24872116]
[1727970805872,0.164655,60733.0,60727.0,0.164669]
[1727970806117,0.164661,60731.0,60727.0,0.164669]
[1727970806373,0.023,60730.0,60723.0,0.329363]
[1727970806616,0.023,60727.0,60724.0,0.164678]
[1727970806863,0.023,60727.0,60724.0,0.41339916]
[1727970807100,0.023,60727.0,60724.0,0.164678]
[1727970807347,0.023,60728.0,60718.0,0.001632]
[1727970807565,0.023,60728.0,60725.0,0.164675]
[1727970807793,0.05908848,60727.0,60723.0,0.002]
[1727970808029,0.023,60728.0,60727.0,0.164671]
[1727970808258,0.47950192,60734.0,60727.0,0.164671]
[1727970808259,0.023,60733.0,60727.0,0.164671]
[1727970808496,0.023,60733.0,60726.0,0.329347]
[1727970808497,0.004,60727.0,60726.0,0.164673]
[1727970808737,0.004,60727.0,60719.0,0.329381]
[1727970808738,0.027,60727.0,60722.0,0.329368]
[1727970808987,0.023,60726.0,60724.0,0.164678]
[1727970809219,0.004,60727.0,60723.0,0.16468]
[1727970809220,0.023,60724.0,60723.0,0.16468]
[1727970809474,0.168672,60727.0,60722.0,0.329368]
[1727970809475,0.023,60726.0,60722.0,0.329368]
[1727970809723,0.164661,60731.0,60726.0,0.164672]
[1727970809963,0.1,60743.0,60727.0,0.44692296]
[1727970810202,0.24872116,60737.0,60734.0,0.164652]
[1727970810673,0.164639,60739.0,60734.0,0.164652]
[1727970810916,0.1014069,60738.0,60735.0,0.164649]
[1727970811151,0.1014069,60738.0,60737.0,0.164644]
[1727970811375,0.1244069,60738.0,60737.0,0.164644]
[1727970811603,0.023,60737.0,60736.0,0.164646]
[1727970812050,0.023,60740.0,60735.0,0.329297]
[1727970812321,0.16464,60739.0,60729.0,0.329326]
[1727970812564,0.023,60738.0,60737.0,0.164644]
[1727970812843,0.023,60738.0,60733.0,0.329308]
[1727970812844,0.023,60738.0,60725.0,0.24872116]
[1727970813083,0.023,60732.0,60725.0,0.24872116]
[1727970813317,0.023,60729.0,60725.0,0.24872116]
[1727970813777,0.023,60728.0,60725.0,0.24872116]
[1727970814011,0.023,60728.0,60722.0,0.164683]
[1727970814475,0.023,60728.0,60719.0,0.329385]
[1727970814476,0.187693,60719.0,60718.0,0.001632]
[1727970814711,0.187693,60719.0,60718.0,0.25035316]
[1727970814712,0.023,60719.0,60718.0,0.25035316]
[1727970815201,0.023,60727.0,60726.0,0.164674]
[1727970815466,0.023,60727.0,60722.0,0.329368]
[1727970815701,0.023,60727.0,60720.0,0.164688]
[1727970815938,0.187673,60727.0,60720.0,0.164689]
[1727970816168,0.023,60723.0,60718.0,0.166326]
[1727970816398,0.023,60727.0,60718.0,0.00818165]
[1727970816635,0.329306,60734.0,60721.0,0.329373]
[1727970816636,0.023,60729.0,60721.0,0.329373]
[1727970816873,0.023,60729.0,60727.0,0.16467]
[1727970817106,0.023,60734.0,60728.0,0.164668]
[1727970817345,0.023,60734.0,60726.0,0.329346]
[1727970817830,0.164656,60733.0,60727.0,0.16467]
[1727970818074,0.164658,60732.0,60727.0,0.16467]
[1727970818323,0.0288,60734.0,60728.0,0.001]
[1727970818565,0.34211124,60733.0,60728.0,0.001]
[1727970818834,0.164659,60732.0,60728.0,0.001]
[1727970819060,0.164665,60729.0,60728.0,0.001]
[1727970819336,0.0258144,60732.0,60728.0,0.165666]
[1727970819559,0.0258144,60732.0,60729.0,0.164663]
[1727970819560,0.0278144,60732.0,60729.0,0.164663]
[1727970819786,0.0278144,60732.0,60726.0,0.57806416]
[1727970819787,0.187661,60731.0,60727.0,0.165671]
[1727970820257,0.187661,60731.0,60726.0,0.57806416]
[1727970820258,0.187666,60729.0,60726.0,0.164674]
[1727970820532,0.187666,60729.0,60723.0,0.164681]
[1727970820533,0.164674,60727.0,60723.0,0.164681]
[1727970820757,0.023,60729.0,60722.0,0.164683]
[1727970820758,0.023,60725.0,60722.0,0.164683]
[1727970821213,0.023,60721.0,60718.0,0.001632]
[1727970821469,0.023,60721.0,60720.0,0.16469]
[1727970821712,0.023,60721.0,60719.0,0.164691]
[1727970821985,0.164679,60724.0,60720.0,0.16469]
[1727970822213,0.023,60725.0,60720.0,0.329379]
[1727970822443,0.023,60725.0,60721.0,0.164685]
[1727970822444,0.023,60723.0,60721.0,0.164685]
[1727970822682,0.164679,60724.0,60718.0,0.166326]
[1727970822683,0.165687,60721.0,60718.0,0.166326]
[1727970822930,0.023,60724.0,60718.0,0.001632]
[1727970823171,0.18768,60724.0,60720.0,0.164689]
[1727970823401,0.023,60724.0,60720.0,0.329379]
[1727970823637,0.18768,60724.0,60722.0,0.001]
[1727970823883,0.35516189,60727.0,60722.0,0.001]
[1727970824112,0.164682,60723.0,60722.0,0.001]
[1727970824335,0.187686,60722.0,60718.0,0.25035316]
[1727970824571,0.187674,60726.0,60720.0,0.002]
[1727970824804,0.187674,60726.0,60721.0,0.164687]
[1727970825470,0.023,60722.0,60721.0,0.164687]
[1727970825706,0.023,60722.0,60721.0,0.41340816]
[1727970825965,0.023,60722.0,60721.0,0.164687]
[1727970826193,0.002,60723.0,60722.0,0.164684]
[1727970827124,0.0009864,60735.0,60734.0,0.164652]
[1727970827608,0.24872116,60745.0,60744.0,0.164625]
[1727970828064,0.24872116,60752.0,60749.0,0.164609]
[1727970828300,0.0947,60754.0,60742.0,0.28179079]
[1727970828557,0.0947,60754.0,60752.0,0.164601]
[1727970828785,0.0947,60754.0,60750.0,0.164607]
[1727970829017,0.0947,60754.0,60751.0,0.164606]
[1727970829243,0.0947,60754.0,60749.0,0.329221]
[1727970829474,0.027,60752.0,60751.0,0.164606]
[1727970829708,0.0947,60754.0,60753.0,0.1646]
[1727970829934,0.1009975,60762.0,60754.0,0.164597]
[1727970830180,0.2655745,60762.0,60754.0,0.164597]
[1727970830461,0.329158,60761.0,60752.0,0.164601]
[1727970830690,0.014,60754.0,60752.0,0.165601]
[1727970830928,0.037,60754.0,60753.0,0.1646]
[1727970831681,0.037,60754.0,60748.0,0.329225]
[1727970831682,0.023,60753.0,60748.0,0.329225]
[1727970831912,0.24872116,60759.0,60737.0,0.28179079]
[1727970831913,0.023,60759.0,60751.0,0.329212]
[1727970832148,0.023,60759.0,60758.0,0.164587]
[1727970832815,0.04880162,60759.0,60758.0,0.164587]
[1727970833083,0.02580162,60759.0,60758.0,0.164587]
[1727970833332,0.02780162,60759.0,60758.0,0.164587]
[1727970833821,0.02780162,60759.0,60735.0,0.329297]
[1727970834064,0.02780162,60759.0,60758.0,0.164587]
[1727970834300,0.05080162,60759.0,60758.0,0.164587]
[1727970834742,0.04880162,60759.0,60758.0,0.164587]
[1727970834996,0.023,60758.0,60745.0,0.24872116]
[1727970835235,0.023,60758.0,60757.0,0.16459]
[1727970836603,0.023,60758.0,60754.0,0.329193]
[1727970836871,0.023,60758.0,60756.0,0.164591]
[1727970836872,0.024,60758.0,60756.0,0.164591]
[1727970837095,0.024,60758.0,60754.0,0.329193]
[1727970837096,0.024,60758.0,60755.0,0.164594]
[1727970837326,0.024,60758.0,60754.0,0.164597]
[1727970837592,0.024,60758.0,60746.0,0.329235]
[1727970837820,0.026,60758.0,60755.0,0.164594]
[1727970838042,0.023,60756.0,60753.0,0.1646]
[1727970838294,0.023,60756.0,60744.0,0.329249]
[1727970838295,0.023,60754.0,60735.0,0.329298]
[1727970838520,0.023,60753.0,60748.0,0.164614]
[1727970838757,0.023,60749.0,60739.0,0.329275]
[1727970838975,0.002,60756.0,60738.0,0.24872116]
[1727970838976,0.023,60745.0,60744.0,0.164625]
[1727970839196,0.0802,60751.0,60738.0,0.24872116]
[1727970839197,0.023,60750.0,60738.0,0.24872116]
[1727970839417,0.0802,60751.0,60738.0,0.57800116]
[1727970839418,0.023,60748.0,60738.0,0.57800116]
[1727970839634,0.023,60748.0,60747.0,0.164617]
[1727970839845,0.0009878,60751.0,60740.0,0.28179079]
[1727970840065,0.023,60750.0,60749.0,0.164611]
[1727970840525,0.001,60753.0,60752.0,0.164603]
[1727970841729,0.0009807,60762.0,60752.0,0.24872116]
[1727970841975,0.0009807,60762.0,60751.0,0.329211]
[1727970841976,0.0009807,60762.0,60761.0,0.164579]
[1727970842455,0.24953716,60779.0,60761.0,0.329158]
[1727970842679,0.24953716,60779.0,60776.0,0.164538]
[1727970842911,0.24953716,60779.0,60761.0,0.329158]
[1727970842912,0.24953716,60779.0,60770.0,0.329105]
[1727970843424,0.24953716,60779.0,60776.0,0.164538]
[1727970843642,0.000816,60779.0,60776.0,0.164538]
[1727970844332,0.05080055,60777.0,60776.0,0.164538]
[1727970844795,0.05380055,60777.0,60776.0,0.164538]
[1727970845252,0.023,60776.0,60763.0,0.24872116]
[1727970845470,0.03280055,60777.0,60770.0,0.41327316]
[1727970845471,0.023,60774.0,60770.0,0.41327316]
[1727970845684,0.023,60774.0,60770.0,0.164552]
[1727970846156,0.023,60774.0,60767.0,0.329124]
[1727970846157,0.1146,60772.0,60752.0,0.24872116]
[1727970846393,0.1146,60772.0,60766.0,0.24872116]
[1727970846394,0.023,60768.0,60766.0,0.24872116]
[1727970846620,0.023,60766.0,60759.0,0.24872116]
[1727970846878,0.023,60766.0,60755.0,0.32919]
[1727970847091,0.023,60766.0,60761.0,0.329156]
[1727970847311,0.023,60766.0,60760.0,0.24872116]
[1727970847312,0.023,60770.0,60758.0,0.329174]
[1727970847543,0.023,60766.0,60752.0,0.24872116]
[1727970847782,0.023,60760.0,60752.0,0.24872116]
[1727970848002,0.187583,60760.0,60755.0,0.164593]
[1727970848236,0.023,60762.0,60754.0,0.329195]
[1727970848515,0.27172116,60764.0,60755.0,0.164594]
[1727970848736,0.164588,60758.0,60753.0,0.164599]
[1727970848980,0.32915,60763.0,60747.0,0.164615]
[1727970848981,0.164601,60753.0,60747.0,0.164615]
[1727970849207,0.32915,60763.0,60738.0,0.24872116]
[1727970849208,0.023,60754.0,60738.0,0.24872116]
[1727970849436,0.329202,60753.0,60738.0,0.24872116]
[1727970849685,0.0995,60755.0,60744.0,0.329247]
[1727970849686,0.023,60748.0,60744.0,0.329247]
[1727970849902,0.023,60750.0,60746.0,0.164619]
[1727970850126,0.023,60752.0,60746.0,0.164618]
[1727970850352,0.023,60752.0,60742.0,0.329256]
[1727970850353,0.023,60750.0,60742.0,0.329256]
[1727970850581,0.023,60752.0,60738.0,0.24872116]
[1727970850582,0.023,60752.0,60751.0,0.164606]
[1727970850803,0.27172116,60757.0,60755.0,0.164593]
[1727970851036,0.27172116,60757.0,60756.0,0.164592]
[1727970851265,0.27172116,60757.0,60747.0,0.329233]
[1727970851266,0.023,60751.0,60747.0,0.329233]
[1727970851492,0.352213,60751.0,60748.0,0.24872116]
[1727970851734,0.352214,60751.0,60746.0,0.002]
[1727970851955,0.187617,60747.0,60746.0,0.002]
[1727970852182,0.264517,60747.0,60746.0,0.002]
[1727970852634,0.264517,60747.0,60731.0,0.57804116]
[1727970852635,0.0999,60747.0,60731.0,0.24872116]
[1727970852864,0.0999,60747.0,60734.0,0.164652]
[1727970852865,0.023,60738.0,60734.0,0.164652]
[1727970853099,0.023,60738.0,60734.0,0.16465]
[1727970853335,0.023,60737.0,60724.0,0.57807816]
[1727970853570,0.023,60733.0,60724.0,0.24872116]
[1727970853790,0.02580998,60738.0,60724.0,0.24872116]
[1727970853791,0.164649,60736.0,60731.0,0.16466]
[1727970854021,0.023,60734.0,60729.0,0.329331]
[1727970854258,0.023,60734.0,60733.0,0.164655]
[1727970854473,0.187644,60737.0,60730.0,0.329326]
[1727970854693,0.187644,60737.0,60733.0,0.164654]
[1727970854694,0.024,60737.0,60733.0,0.164654]
[1727970854921,0.001,60736.0,60732.0,0.24872116]
[1727970855141,0.024,60737.0,60735.0,0.164649]
[1727970855362,0.024,60737.0,60733.0,0.164653]
[1727970855581,0.024,60737.0,60731.0,0.329319]
[1727970855801,0.023,60737.0,60734.0,0.164651]
[1727970856014,0.023,60735.0,60729.0,0.32933]
[1727970856373,0.023,60735.0,60731.0,0.16466]
[1727970856476,0.023,60735.0,60732.0,0.164657]
[1727970856703,0.023,60735.0,60734.0,0.164652]
[1727970856972,0.023,60735.0,60733.0,0.009]
[1727970857208,0.10016492,60735.0,60732.0,0.164656]
[1727970857468,0.24872116,60740.0,60728.0,0.329334]
[1727970857469,0.023,60739.0,60728.0,0.329334]
[1727970857705,0.001,60735.0,60732.0,0.164656]
[1727970857960,0.023,60734.0,60729.0,0.493992]
[1727970858193,0.023,60732.0,60729.0,0.164664]
[1727970858411,0.023,60732.0,60725.0,0.329349]
[1727970858412,0.023,60732.0,60726.0,0.329343]
[1727970858635,0.023,60732.0,60729.0,0.166299]
[1727970859081,0.023,60730.0,60729.0,0.001634]
[1727970859315,0.32666606,60730.0,60729.0,0.001634]
[1727970859789,0.40176606,60730.0,60729.0,0.001634]
[1727970860030,0.40176606,60730.0,60729.0,0.003634]
[1727970860490,0.40176606,60730.0,60729.0,0.001634]
[1727970860977,0.164684,60722.0,60718.0,0.001632]
[1727970861216,0.56817479,60722.0,60718.0,0.001632]
[1727970862151,0.57717479,60722.0,60718.0,0.001632]
[1727970862376,0.57517479,60722.0,60718.0,0.001632]
[1727970862872,0.293384,60722.0,60718.0,0.001632]
[1727970863110,0.1357,60722.0,60721.0,0.002634]
[1727970863375,0.15451949,60722.0,60721.0,0.167321]
[1727970863615,0.02581949,60722.0,60721.0,0.166321]
[1727970863848,0.03581949,60722.0,60721.0,0.166321]
[1727970864107,0.04281949,60722.0,60721.0,0.167321]
[1727970864333,0.04281949,60722.0,60721.0,0.44911179]
[1727970864561,0.03281949,60722.0,60721.0,0.44911179]
[1727970865031,0.03281949,60722.0,60721.0,0.167321]
[1727970865261,0.02581949,60722.0,60721.0,0.166321]
[1727970865485,0.02581949,60722.0,60721.0,0.168321]
[1727970865947,0.02581949,60722.0,60721.0,0.166321]
[1727970866429,0.02581949,60722.0,60721.0,0.169321]
[1727970867258,0.04881949,60722.0,60721.0,0.17587641]
[1727970868683,0.04881949,60722.0,60721.0,0.169321]
[1727970869085,0.02581949,60722.0,60721.0,0.169321]
[1727970870338,0.04881949,60722.0,60721.0,0.169321]
[1727970871704,0.02581949,60722.0,60721.0,0.169321]
[1727970873231,0.24872116,60730.0,60729.0,0.164665]
[1727970873455,0.27453432,60730.0,60729.0,0.164665]
[1727970873671,0.000818,60735.0,60734.0,0.164652]
[1727970874753,0.02662827,60735.0,60734.0,0.164652]
[1727970874965,0.04962827,60735.0,60734.0,0.164652]
[1727970876100,0.04962827,60735.0,60734.0,0.167652]
[1727970876334,0.2357041,60735.0,60734.0,0.003]
[1727970876562,0.29587727,60735.0,60734.0,0.003]
[1727970876809,0.187684,60722.0,60718.0,0.25035316]
[1727970877271,0.187684,60722.0,60718.0,0.001632]
[1727970877513,0.283584,60722.0,60718.0,0.001632]
[1727970877761,0.43892858,60722.0,60718.0,0.001632]
[1727970878456,0.52142858,60722.0,60718.0,0.001632]
[1727970879123,0.52442858,60722.0,60718.0,0.001632]
[1727970879576,0.52142858,60722.0,60718.0,0.001632]
[1727970879797,0.52442858,60722.0,60718.0,0.001632]
[1727970880044,0.52742858,60722.0,60721.0,0.002634]
[1727970880465,0.53842858,60722.0,60721.0,0.002634]
[1727970881114,0.54842858,60722.0,60721.0,0.002634]
[1727970881323,0.164693,60719.0,60718.0,0.001632]
[1727970881558,0.187693,60719.0,60718.0,0.001632]
[1727970882037,0.189693,60719.0,60718.0,0.001632]
[1727970882497,0.189693,60719.0,60703.0,0.24872116]
[1727970882498,0.28179079,60711.0,60703.0,0.24872116]
[1727970882722,0.164733,60704.0,60703.0,0.24872116]
[1727970882933,0.28179079,60711.0,60703.0,0.24872116]
[1727970883145,0.031,60719.0,60700.0,0.001634]
[1727970883146,0.0009904,60716.0,60700.0,0.001634]
[1727970883373,0.02582304,60707.0,60706.0,0.164728]
[1727970884462,0.02582304,60707.0,60700.0,0.00829001]
[1727970884463,0.04882304,60707.0,60700.0,0.00829001]
[1727970884696,0.023,60706.0,60704.0,0.164733]
[1727970884928,0.023,60706.0,60703.0,0.166734]
[1727970885161,0.023,60706.0,60704.0,0.164733]
[1727970885607,0.023,60706.0,60705.0,0.164731]
[1727970885833,0.02682304,60707.0,60705.0,0.164731]
[1727970885834,0.001,60707.0,60705.0,0.164731]
[1727970886056,0.023,60708.0,60705.0,0.164731]
[1727970886487,0.001,60706.0,60705.0,0.164731]
[1727970886706,0.024,60706.0,60704.0,0.003]
[1727970886924,0.187731,60705.0,60704.0,0.003]
[1727970887137,0.26772878,60705.0,60704.0,0.003]
[1727970887357,0.36022878,60705.0,60704.0,0.003]
[1727970887817,0.36022878,60705.0,60700.0,0.001634]
[1727970887818,0.023,60704.0,60701.0,0.329482]
[1727970888041,0.023,60704.0,60703.0,0.164736]
[1727970888254,0.0839672,60704.0,60703.0,0.164736]
[1727970888929,0.023,60704.0,60703.0,0.164736]
[1727970889132,0.04882397,60704.0,60703.0,0.164736]
[1727970890200,0.023,60704.0,60703.0,0.164736]
[1727970891079,0.023,60704.0,60703.0,0.167736]
[1727970891958,0.24872116,60713.0,60712.0,0.164712]
[1727970892650,0.57810116,60720.0,60715.0,0.164702]
[1727970892874,0.4288383,60725.0,60712.0,0.28179079]
[1727970892875,0.0009833,60725.0,60712.0,0.28179079]
[1727970893112,0.0009833,60725.0,60724.0,0.164679]
[1727970893327,0.000818,60729.0,60720.0,0.329379]
[1727970893541,0.007,60713.0,60710.0,0.329434]
[1727970893759,0.007,60713.0,60712.0,0.164712]
[1727970893973,0.02581535,60725.0,60724.0,0.164679]
[1727970894193,0.04881535,60725.0,60724.0,0.164679]
[1727970895511,0.023,60725.0,60724.0,0.164679]
[1727970895732,0.000818,60729.0,60728.0,0.164668]
[1727970897286,0.000818,60729.0,60727.0,0.16467]
[1727970897514,0.023,60728.0,60727.0,0.16467]
[1727970898210,0.004818,60729.0,60727.0,0.16467]
[1727970898461,0.004818,60729.0,60720.0,0.00665458]
[1727970898462,0.023,60726.0,60720.0,0.00665458]
[1727970898717,0.02,60728.0,60708.0,0.24872116]
[1727970898984,0.004818,60729.0,60728.0,0.164668]
[1727970899745,0.000818,60729.0,60728.0,0.164668]
[1727970900725,0.000818,60729.0,60728.0,0.167668]
[1727970900956,0.000818,60729.0,60728.0,0.164668]
[1727970901427,0.004818,60729.0,60728.0,0.164668]
[1727970901641,0.000818,60729.0,60728.0,0.164668]
[1727970902096,0.004818,60729.0,60728.0,0.164668]
[1727970903040,0.004818,60729.0,60728.0,0.44945879]
[1727970903041,0.005818,60729.0,60728.0,0.44945879]
[1727970903479,0.000818,60729.0,60728.0,0.44645879]
[1727970903709,0.001818,60729.0,60728.0,0.46045879]
[1727970903915,0.001818,60729.0,60728.0,0.46701095]
[1727970904358,0.002818,60729.0,60728.0,0.47001095]
[1727970904771,0.001818,60729.0,60728.0,0.46701095]
[1727970905006,0.002818,60729.0,60728.0,0.47001095]
[1727970905704,0.002818,60729.0,60728.0,0.71119766]
[1727970906399,0.002818,60729.0,60728.0,0.81119766]
[1727970906636,0.002818,60729.0,60728.0,0.94511766]
[1727970906852,0.000818,60735.0,60734.0,0.274872]